bitfinex/quotes_ETHUSD_20240916
["timestamp","ask_amount","ask_price","bid_price","bid_amount"]
[1726456745891,0.0382505,2280.1,2279.7,4.38654]
[1726456746092,0.10694319,2280.0,2279.9,0.55]
[1726456746398,4.38512,2280.5,2279.9,0.55]
[1726456746399,0.0382505,2281.5,2280.2,4.38539]
[1726456746603,0.0382505,2281.5,2280.7,0.55]
[1726456746604,5.0677505,2281.5,2280.7,0.55]
[1726456746819,0.75258088,2281.5,2280.4,2.4284]
[1726456747020,0.75258088,2281.5,2280.0,4.89493941]
[1726456747021,4.38464,2280.7,2280.1,3.0]
[1726456747226,4.38464,2280.7,2280.0,7.36432]
[1726456747438,4.38494,2280.6,2280.0,3.06610629]
[1726456747930,4.38494,2280.6,2280.0,2.9784]
[1726456748465,4.38494,2280.6,2280.0,0.55]
[1726456748841,4.38501,2280.5,2280.0,0.55]
[1726456750452,4.38469,2280.7,2280.2,0.55]
[1726456750765,0.6463,2280.9,2280.2,0.55]
[1726456750766,8.8073705,2280.8,2280.2,0.55]
[1726456750923,4.4227805,2280.8,2280.2,4.93554]
[1726456751329,4.4227805,2280.8,2280.2,4.93548]
[1726456751882,4.4227805,2280.8,2280.2,0.55]
[1726456751883,4.38477,2280.7,2280.2,0.55]
[1726456752074,4.38482,2280.6,2280.2,0.55]
[1726456752258,4.38482,2280.6,2279.8,7.38625]
[1726456752259,4.38512,2280.5,2279.9,0.55]
[1726456752425,0.0382505,2280.8,2279.9,6.46940041]
[1726456752630,0.0382505,2280.8,2280.1,9.28059941]
[1726456752832,0.0382505,2280.8,2280.2,1.16870994]
[1726456752833,4.38465,2280.7,2280.2,1.16870994]
[1726456753065,4.38465,2280.7,2280.1,3.55]
[1726456753271,0.0382505,2280.8,2280.5,0.55]
[1726456753478,0.0382505,2280.8,2280.5,1.043536]
[1726456753937,0.0382505,2280.8,2280.3,4.38523]
[1726456754268,0.10126523,2280.7,2280.4,0.55]
[1726456754671,0.0382505,2280.8,2280.4,0.55]
[1726456754972,4.4227005,2280.8,2280.4,0.55]
[1726456755174,0.10122634,2280.7,2280.2,4.93554]
[1726456755372,0.10122634,2280.7,2280.4,0.55]
[1726456755819,4.4227005,2280.8,2280.3,0.55]
[1726456756089,0.10128468,2280.6,2280.3,0.55]
[1726456756289,4.4227005,2280.8,2280.3,0.55]
[1726456756490,0.10128468,2280.5,2280.3,0.55]
[1726456756659,4.4227005,2280.8,2280.3,0.55]
[1726456756854,0.10128468,2280.4,2280.0,2.4065]
[1726456757059,5.03111,2280.6,2280.0,2.4065]
[1726456757256,0.10128468,2280.3,2280.0,6.88015571]
[1726456757557,0.10128468,2280.2,2280.0,9.33731632]
[1726456757765,5.03111,2280.6,2280.0,9.33731632]
[1726456757957,0.10128468,2280.1,2280.0,9.33731632]
[1726456758178,5.03111,2280.6,2280.0,9.33731632]
[1726456758495,6.44677734,2280.7,2280.4,0.55]
[1726456758706,0.0382505,2280.8,2280.4,5.02275084]
[1726456759560,0.0382505,2280.8,2280.6,0.55]
[1726456759858,0.0382505,2280.8,2280.2,3.0]
[1726456759859,4.38491,2280.6,2280.2,0.55]
[1726456760214,0.10628088,2280.8,2280.1,2.4167]
[1726456760362,0.0382505,2280.8,2280.7,2.9667]
[1726456760761,0.0382505,2280.8,2280.5,4.89493941]
[1726456760762,0.13961296,2280.8,2280.6,0.55]
[1726456761088,0.0382505,2280.8,2280.6,0.6376879]
[1726456761405,0.0382505,2280.8,2280.6,5.8159549]
[1726456761406,0.10137218,2280.7,2280.6,5.8159549]
[1726456761899,0.0382505,2280.8,2280.6,5.8159049]
[1726456762105,0.10143052,2280.7,2280.6,5.8159049]
[1726456762456,0.0382505,2280.8,2280.6,0.55]
[1726456762758,0.10143052,2280.7,2280.3,0.55]
[1726456763100,0.10143052,2280.7,2280.2,4.47314376]
[1726456763363,0.10151801,2280.6,2280.2,4.38545]
[1726456763666,4.38501,2280.5,2279.9,2.3065]
[1726456763968,0.10148885,2280.4,2279.9,2.3065]
[1726456764260,0.10148885,2280.4,2280.0,4.47354988]
[1726456764462,5.0690805,2280.8,2280.0,8.85936988]
[1726456764621,0.10148885,2280.3,2280.1,4.38565]
[1726456764824,5.0690805,2280.8,2280.2,0.08770262]
[1726456765161,5.0690905,2280.8,2280.1,0.08770248]
[1726456765457,4.38512,2280.5,2280.2,0.55]
[1726456765661,4.38523,2280.4,2280.0,0.55]
[1726456765835,4.38523,2280.4,2279.8,4.38618]
[1726456766032,5.03173,2280.3,2279.8,4.177279]
[1726456766350,0.6463,2280.3,2279.8,0.08771084]
[1726456766560,0.6463,2280.3,2279.7,4.474234]
[1726456766561,5.03173,2280.3,2279.7,4.474234]
[1726456766857,9.4173,2280.3,2279.8,0.4474234]
[1726456767073,9.4173,2280.3,2279.5,6.79201]
[1726456767074,4.38577,2280.1,2279.5,6.79201]
[1726456767289,4.3863,2279.9,2279.3,4.38718]
[1726456767444,5.03269,2279.8,2279.2,2.803]
[1726456767642,5.0327,2279.8,2279.2,2.803]
[1726456767875,4.38685,2279.6,2279.2,0.355]
[1726456768186,4.38703,2279.5,2278.9,2.448]
[1726456768387,5.10071038,2279.8,2278.7,2.3332]
[1726456768388,4.38781,2279.1,2278.7,2.3332]
[1726456768535,4.38781,2279.1,2278.5,4.38868]
[1726456768738,4.38781,2279.1,2278.6,0.58233064]
[1726456769363,4.38808,2278.9,2278.6,0.58233064]
[1726456769582,4.38808,2278.9,2278.3,6.72229]
[1726456769583,4.38808,2278.9,2278.3,2.3332]
[1726456769882,4.38808,2278.9,2278.3,6.72241]
[1726456769883,4.38827,2278.8,2278.3,6.72241]
[1726456770097,4.38827,2278.8,2278.4,0.672241]
[1726456770448,4.38827,2278.8,2278.3,2.3332]
[1726456770761,4.38866,2278.6,2278.1,4.4277205]
[1726456770949,4.38866,2278.6,2278.1,0.0382505]
[1726456771379,4.3889,2278.5,2278.1,1.15739855]
[1726456771698,5.03431,2279.0,2278.1,5.54699855]
[1726456771861,5.03431,2279.0,2278.3,9.28398941]
[1726456772183,5.03431,2279.0,2278.5,4.38883]
[1726456772184,0.6463,2279.0,2278.5,4.38883]
[1726456772483,9.42218,2279.0,2278.6,0.44765923]
[1726456772789,4.38827,2278.8,2278.1,4.4277705]
[1726456772992,4.38848,2278.7,2278.3,0.55]
[1726456773149,4.38847,2278.7,2278.3,0.55]
[1726456773351,0.6463,2279.0,2278.3,0.55]
[1726456773352,4.38877,2278.6,2278.3,0.55]
[1726456773551,4.38877,2278.6,2278.2,0.55]
[1726456773774,4.38877,2278.6,2278.2,0.98204715]
[1726456775560,0.09794699,2278.5,2278.2,0.98204715]
[1726456776168,5.13324699,2278.5,2278.2,0.55]
[1726456776465,4.38907,2278.4,2278.2,0.55]
[1726456776677,4.38907,2278.4,2278.1,0.0382505]
[1726456777063,4.48720699,2278.3,2278.1,0.0382505]
[1726456777992,4.38943,2278.2,2278.1,0.0382505]
[1726456778493,8.87650501,2278.2,2278.1,0.0382505]
[1726456779292,9.98238906,2278.2,2278.1,0.0382505]
[1726456787320,0.55722906,2278.2,2278.1,0.0382505]
[1726456788801,4.94665906,2278.2,2278.1,0.0382505]
[1726456789710,0.55722906,2278.2,2278.1,0.0382505]
[1726456793400,0.55722906,2278.2,2278.1,1.03105455]
[1726456794314,0.55722906,2278.2,2278.1,16.18786353]
[1726456794517,0.55722906,2278.2,2278.1,18.74505948]
[1726456794712,6.44677734,2278.8,2278.3,8.77828]
[1726456794912,4.38826,2278.9,2278.4,0.08777184]
[1726456795070,0.45952268,2278.8,2278.4,4.38899]
[1726456795486,0.45952268,2278.8,2278.5,0.55]
[1726456795687,0.45952268,2278.8,2278.5,1.67902526]
[1726456796378,0.45952268,2278.8,2278.5,6.06782526]
[1726456796572,0.45952268,2278.8,2278.5,4.9388]
[1726456797013,0.45952268,2278.8,2278.5,2.9805]
[1726456798202,0.45952268,2278.8,2278.5,7.36933]
[1726456798821,0.45952268,2278.8,2278.5,2.9805]
[1726456799294,0.45952268,2278.8,2278.5,4.156336]
[1726456800892,0.45952268,2278.8,2278.5,4.24410219]
[1726456801229,0.45952268,2278.8,2278.7,0.55]
[1726456801523,10.83427734,2279.2,2278.7,4.93846]
[1726456801682,10.83427734,2279.2,2278.7,6.12298019]
[1726456801997,4.38771,2279.1,2278.7,1.73452019]
[1726456802318,4.38771,2279.1,2278.3,2.3172]
[1726456802319,4.38848,2278.7,2278.3,2.3172]
[1726456802506,4.38894,2278.5,2278.1,2.3554505]
[1726456802710,4.48280906,2278.6,2278.1,7.04879555]
[1726456802885,4.38875,2278.6,2278.2,1.14384656]
[1726456803081,0.09405906,2278.5,2278.2,1.14384656]
[1726456803326,0.09405906,2278.5,2278.4,4.38904]
[1726456803512,0.09405906,2278.5,2278.4,6.71964]
[1726456803787,4.388,2279.0,2278.5,4.93884]
[1726456803788,8.77601,2279.0,2278.5,4.93884]
[1726456803987,4.38809,2278.9,2278.5,4.93884]
[1726456804187,4.38831,2278.8,2278.5,0.55]
[1726456804384,4.38831,2278.8,2278.3,0.55]
[1726456804385,4.38867,2278.6,2278.3,0.55]
[1726456804628,4.38831,2278.8,2278.3,0.55]
[1726456804796,4.38866,2278.6,2278.3,1.28083605]
[1726456805638,0.09388375,2278.5,2278.3,1.28083605]
[1726456805943,4.38857,2278.7,2278.3,0.55]
[1726456806151,4.38831,2278.8,2278.3,4.9392]
[1726456806307,0.09388375,2278.6,2278.3,0.55]
[1726456806506,4.38848,2278.7,2278.3,0.55]
[1726456806718,0.09388375,2278.5,2278.3,0.55]
[1726456806930,4.38831,2278.8,2278.3,5.66987405]
[1726456807137,0.09388375,2278.4,2278.3,5.66987405]
[1726456807303,4.38831,2278.8,2278.3,5.66987405]
[1726456807503,0.09388375,2278.4,2278.3,5.66987405]
[1726456807729,4.38831,2278.8,2278.3,5.66987405]
[1726456808041,4.38877,2278.6,2278.3,1.28082405]
[1726456808392,4.38855,2278.7,2278.2,2.3306]
[1726456808393,8.87107375,2278.7,2278.2,6.72]
[1726456808647,4.38885,2278.5,2278.3,0.67584505]
[1726456808798,0.09388375,2278.6,2278.2,2.3306]
[1726456809499,4.48262375,2278.6,2278.2,2.3306]
[1726456810244,4.94216093,2278.6,2278.2,2.3306]
[1726456812014,0.55342093,2278.6,2278.2,3.44540805]
[1726456812418,0.55342093,2278.6,2278.2,7.83482805]
[1726456812638,4.94213093,2278.6,2278.2,3.44540805]
[1726456812812,4.94213093,2278.6,2278.2,7.83481805]
[1726456813016,4.94213093,2278.6,2278.3,1.22625886]
[1726456813428,0.55342093,2278.6,2278.3,1.22625886]
[1726456813630,4.38901,2278.5,2278.2,2.3306]
[1726456813831,4.94207093,2278.6,2278.2,2.3306]
[1726456814014,0.09415655,2278.4,2278.2,6.71998]
[1726456814230,0.45953718,2278.6,2278.2,7.84353099]
[1726456814431,0.09357042,2278.3,2278.2,7.84353099]
[1726456814636,0.45953718,2278.6,2278.2,8.39353099]
[1726456814803,0.45953718,2278.6,2278.3,1.28212815]
[1726456815253,4.84833718,2278.6,2278.3,1.28212815]
[1726456815458,4.38923,2278.3,2278.1,0.0382505]
[1726456815829,5.03526,2278.5,2278.1,0.0382505]
[1726456816542,4.38914,2278.4,2278.1,0.0382505]
[1726456816931,0.45953718,2278.6,2278.5,4.38885]
[1726456817129,12.84814877,2279.4,2278.6,0.55]
[1726456817363,2.01411143,2279.4,2278.9,4.38797]
[1726456817570,1.82374858,2279.6,2279.0,2.322]
[1726456817571,4.84702971,2279.2,2279.0,2.322]
[1726456817722,0.45947971,2279.2,2279.0,2.322]
[1726456818556,0.45947971,2279.2,2279.0,6.29490257]
[1726456819175,0.45947971,2279.2,2279.1,4.93769]
[1726456819468,0.6463,2279.6,2279.1,4.93769]
[1726456819469,4.38682,2279.6,2279.1,6.06094926]
[1726456819621,0.45920405,2279.4,2279.1,6.14869011]
[1726456819825,0.45920405,2279.4,2279.2,5.21726184]
[1726456820027,0.45920405,2279.4,2279.3,3.03714109]
[1726456820256,0.6463,2280.1,2279.3,7.42445109]
[1726456820564,0.45918688,2279.8,2279.5,3.97290257]
[1726456820865,0.45918688,2279.8,2279.5,8.35979257]
[1726456821035,0.45918688,2279.8,2279.6,0.63773152]
[1726456821239,10.83229734,2280.3,2279.8,0.55]
[1726456821541,10.83229734,2280.3,2279.9,3.97290257]
[1726456821542,0.45918474,2280.2,2279.9,3.97290257]
[1726456821931,0.09238244,2280.1,2280.0,0.55]
[1726456822268,0.09238244,2280.1,2280.0,11.19766257]
[1726456823853,0.09238244,2280.1,2280.0,6.81170257]
[1726456824155,0.09238244,2280.1,2280.0,2.8388]
[1726456826142,0.09238244,2280.1,2280.0,3.57005468]
[1726456826556,0.09238244,2280.1,2280.0,7.95601468]
[1726456826933,0.45911759,2280.5,2280.0,7.95601468]
[1726456827130,0.09272344,2280.1,2280.0,8.04371824]
[1726456827376,0.45911759,2280.5,2280.0,8.04371824]
[1726456827529,0.09272344,2280.1,2280.0,8.04371824]
[1726456827733,4.38525,2280.4,2280.0,3.57005468]
[1726456827933,4.84411759,2280.5,2280.1,0.79560947]
[1726456829068,9.22927759,2280.5,2280.1,0.79560947]
[1726456829368,4.38519,2280.4,2280.1,0.79560947]
[1726456829574,4.84411759,2280.5,2280.1,0.79560947]
[1726456829781,4.84411759,2280.5,2280.0,2.8388]
[1726456829936,4.38542,2280.3,2280.0,2.2888]
[1726456831383,4.38577,2280.1,2279.6,2.2907]
[1726456831677,4.38597,2280.0,2279.6,2.2907]
[1726456831983,4.38577,2280.1,2279.6,2.2907]
[1726456832287,8.77164,2280.1,2279.7,0.667754]
[1726456832665,8.77166,2280.1,2279.7,0.667754]
[1726456833261,4.38597,2280.0,2279.7,0.667754]
[1726456833581,8.77171,2280.1,2279.7,0.667754]
[1726456833748,4.38602,2280.0,2279.7,0.667754]
[1726456835255,4.38602,2280.0,2279.6,2.2907]
[1726456835675,4.53336082,2279.9,2279.6,2.2907]
[1726456837692,0.14710082,2279.9,2279.7,0.55]
[1726456837844,4.38596,2280.0,2279.7,0.55]
[1726456838047,0.1470521,2279.8,2279.7,0.55]
[1726456838378,4.38596,2280.0,2279.7,0.55]
[1726456838618,0.1470521,2279.8,2279.7,0.55]
[1726456838818,4.38596,2280.0,2279.7,0.55]
[1726456839505,0.1470521,2279.9,2279.7,0.55]
[1726456841314,0.1470521,2279.9,2279.6,2.2907]
[1726456841693,0.1470521,2279.9,2279.6,3.20220665]
[1726456842312,0.60622215,2279.9,2279.6,3.20220665]
[1726456845110,0.60622215,2279.9,2279.6,7.58892665]
[1726456845307,0.60622215,2279.9,2279.7,0.55]
[1726456846200,0.60622215,2279.9,2279.6,2.2907]
[1726456848107,4.99239215,2279.9,2279.6,2.2907]
[1726456848644,4.99239215,2279.9,2279.5,0.55]
[1726456849337,0.60622215,2279.9,2279.5,4.93692]
[1726456849548,0.60622215,2279.9,2279.6,4.38672]
[1726456849759,0.60622215,2279.9,2279.8,2.9223]
[1726456849935,0.1470521,2279.9,2279.8,7.30864]
[1726456850108,0.45915541,2279.9,2279.8,7.30864]
[1726456850428,0.60581779,2279.9,2279.8,2.9223]
[1726456850634,0.60581779,2279.9,2279.8,3.73899687]
[1726456851010,0.60581779,2279.9,2279.8,12.599391]
[1726456851447,0.14666238,2279.9,2279.8,12.599391]
[1726456851819,0.45912935,2280.2,2279.9,4.38614]
[1726456852147,0.45912935,2280.2,2280.0,0.55]
[1726456853658,4.84471935,2280.2,2279.9,0.55]
[1726456853952,5.03216,2280.1,2279.7,0.55]
[1726456856844,5.03216,2280.1,2279.7,0.93359287]
[1726456857777,0.6463,2280.1,2279.7,0.93359287]
[1726456857987,4.84471935,2280.2,2279.7,0.93359287]
[1726456858540,9.23037935,2280.2,2279.7,0.93359287]
[1726456858739,9.23045935,2280.2,2279.7,0.93359287]
[1726456859141,4.84471935,2280.2,2279.7,0.93359287]
[1726456859574,9.23038935,2280.2,2279.7,0.93359287]
[1726456859780,4.84471935,2280.2,2279.7,0.93359287]
[1726456859976,9.23039935,2280.2,2279.7,0.93359287]
[1726456860286,4.84471935,2280.2,2279.7,0.93359287]
[1726456861052,0.52715973,2280.2,2279.6,0.85822868]
[1726456861188,4.38605,2280.0,2279.6,0.85822868]
[1726456861767,4.38626,2279.9,2279.6,0.55]
[1726456861967,4.38662,2279.7,2279.3,2.3147]
[1726456862188,4.38658,2279.7,2279.3,2.3147]
[1726456862403,4.38726,2279.4,2279.1,1.68431102]
[1726456862607,4.38723,2279.4,2279.1,0.77010751]
[1726456862901,4.3874,2279.3,2279.1,0.77010751]
[1726456863526,4.3875,2279.2,2279.1,0.77010751]
[1726456863800,8.77453,2279.4,2279.1,0.77010751]
[1726456864305,4.38735,2279.3,2279.1,0.77010751]
[1726456864505,4.38723,2279.4,2279.1,0.77010751]
[1726456864829,4.38733,2279.3,2279.1,0.77010751]
[1726456865029,4.38733,2279.3,2279.1,0.38505399]
[1726456865207,4.38733,2279.3,2278.9,0.55]
[1726456865392,4.38733,2279.3,2278.9,1.78739026]
[1726456865723,0.14634057,2279.2,2278.9,1.78739026]
[1726456865885,4.38733,2279.3,2278.9,1.78739026]
[1726456866087,0.14634057,2279.1,2278.9,1.78739026]
[1726456866279,4.38733,2279.3,2278.9,1.78739026]
[1726456866482,0.14634057,2279.0,2278.9,1.78739026]
[1726456866720,4.38733,2279.3,2278.9,1.23739026]
[1726456866891,0.14634057,2279.0,2278.9,0.55]
[1726456867096,4.38733,2279.3,2278.9,0.55]
[1726456867288,0.14531728,2279.0,2278.9,0.55]
[1726456867626,4.38733,2279.3,2278.9,1.69596997]
[1726456867811,0.14531728,2279.0,2278.9,1.69596997]
[1726456868007,4.38733,2279.3,2278.9,1.69596997]
[1726456868179,0.14531728,2279.0,2278.9,1.69596997]
[1726456868385,4.38751,2279.2,2278.9,1.69596997]
[1726456868617,4.38751,2279.2,2278.8,0.0877499]
[1726456868618,0.14531728,2279.0,2278.8,0.63775]
[1726456868825,4.38751,2279.2,2278.8,0.55]
[1726456869121,4.38751,2279.2,2278.8,1.58364732]
[1726456869322,4.84635847,2279.4,2278.6,2.02067969]
[1726456869323,4.53311728,2279.1,2278.6,2.02067969]
[1726456869486,4.53311728,2279.1,2278.5,2.4427]
[1726456869487,4.38817,2278.9,2278.5,2.4427]
[1726456869891,4.38817,2278.9,2278.3,6.8518]
[1726456870125,0.14530753,2278.8,2278.4,1.82769589]
[1726456870336,0.14530753,2278.8,2278.3,2.4627]
[1726456870498,8.77684,2278.8,2278.3,2.55047139]
[1726456870700,4.53361177,2278.7,2278.3,2.55047139]
[1726456870902,0.14514177,2278.7,2278.3,3.84733636]
[1726456871209,6.44677734,2279.2,2278.7,2.2929]
[1726456871413,6.44677734,2279.2,2278.8,0.75589639]
[1726456871718,6.44677734,2279.2,2278.9,0.55]
[1726456874610,4.38736,2279.3,2278.9,0.55]
[1726456875349,9.23366847,2279.4,2278.9,0.55]
[1726456875513,9.23366847,2279.4,2278.9,1.34871664]
[1726456875718,4.38735,2279.3,2278.9,1.34871664]
[1726456877250,4.38751,2279.2,2278.9,1.34871664]
[1726456877457,4.38751,2279.2,2278.9,0.55]
[1726456878443,4.38751,2279.2,2278.7,2.2929]
[1726456878658,4.38751,2279.2,2278.8,0.55]
[1726456880656,0.1452198,2279.1,2278.8,0.55]
[1726456882362,0.60438232,2279.1,2278.8,0.55]
[1726456883139,0.60438232,2279.1,2278.8,1.28191547]
[1726456883316,4.99208232,2279.1,2278.8,1.28191547]
[1726456883522,0.60438232,2279.1,2278.8,1.28191547]
[1726456885162,0.60438232,2279.1,2278.8,5.75779983]
[1726456885366,0.60438232,2279.1,2278.9,4.38808]
[1726456885521,0.60438232,2279.1,2279.0,0.63774884]
[1726456886422,0.60438232,2279.1,2279.0,0.55]
[1726456886721,0.60438232,2279.1,2279.0,1.05258788]
[1726456889940,0.60438232,2279.1,2279.0,5.44046788]
[1726456890324,0.60438232,2279.1,2279.0,1.05258788]
[1726456891161,0.60438232,2279.1,2279.0,12.09004788]
[1726456891460,0.45916252,2279.1,2279.0,11.58746]
[1726456891623,10.83332734,2279.7,2279.1,4.9376]
[1726456891825,4.84567332,2279.7,2279.1,5.02533629]
[1726456892024,4.84567332,2279.7,2279.3,0.55]
[1726456892773,4.38724,2279.4,2279.1,0.55]
[1726456892927,4.38724,2279.4,2279.0,2.2617]
[1726456893270,5.03324,2279.5,2279.1,0.22617]
[1726456893964,4.38729,2279.4,2279.1,0.22617]
[1726456894263,4.38729,2279.4,2278.9,4.93807]
[1726456894575,4.38731,2279.3,2278.9,3.55]
[1726456894885,4.38731,2279.3,2278.9,4.88628483]
[1726456895585,0.14540503,2279.2,2278.9,4.88628483]
[1726456895750,4.38731,2279.3,2278.9,4.88628483]
[1726456895945,4.38731,2279.3,2278.8,2.3368]
[1726456895946,0.14540503,2279.1,2278.8,2.3368]
[1726456896146,4.38771,2279.1,2278.7,0.55]
[1726456896405,0.14540503,2279.0,2278.7,0.55]
[1726456896546,0.21343541,2279.0,2278.3,2.4298]
[1726456896742,4.38839,2278.8,2278.3,2.4298]
[1726456897250,4.38857,2278.7,2278.3,2.4298]
[1726456897448,5.03501,2278.6,2278.1,2.53482485]
[1726456897690,4.38871,2278.6,2278.2,0.39711707]
[1726456897852,4.38847,2278.7,2278.2,0.39711707]
[1726456898049,0.14496623,2278.5,2278.2,0.39711707]
[1726456898255,4.38847,2278.7,2278.2,0.39711707]
[1726456898474,0.14496623,2278.4,2278.2,0.39711707]
[1726456898712,5.03466,2278.8,2278.2,0.94711707]
[1726456898713,0.14496623,2278.3,2278.2,0.94711707]
[1726456899036,5.03466,2278.8,2278.2,8.33639707]
[1726456899337,4.38858,2278.7,2278.2,1.03489364]
[1726456899543,4.53354623,2278.7,2278.2,1.03489364]
[1726456899692,4.53354623,2278.7,2278.2,0.94711707]
[1726456899893,4.38886,2278.5,2278.2,0.55]
[1726456900090,4.38886,2278.5,2278.1,0.0382505]
[1726456900334,0.14496623,2278.4,2278.1,0.0382505]
[1726456901387,4.38943,2278.2,2278.1,0.0382505]
[1726456901592,12.49319038,2278.2,2278.1,0.0382505]
[1726456902034,17.02728423,2278.2,2278.1,0.0382505]
[1726456902443,12.63785423,2278.2,2278.1,0.0382505]
[1726456902635,0.14466385,2278.2,2278.1,0.0382505]
[1726456902927,4.38913,2278.4,2278.1,0.0382505]
[1726456903138,0.14256608,2278.2,2278.1,0.0382505]
[1726456903336,4.38913,2278.4,2278.1,0.0382505]
[1726456903491,0.14256608,2278.2,2278.1,0.0382505]
[1726456903692,4.38924,2278.3,2278.1,0.0382505]
[1726456903892,0.14256608,2278.2,2278.1,0.0382505]
[1726456904128,4.38913,2278.4,2278.1,0.0382505]
[1726456904438,0.14256608,2278.2,2278.1,0.0382505]
[1726456904600,4.38943,2278.2,2278.1,0.0382505]
[1726456904932,9.49319038,2278.2,2278.1,0.0382505]
[1726456905145,9.63601025,2278.2,2278.1,0.0382505]
[1726456905431,9.56797987,2278.2,2278.1,0.0382505]
[1726456907323,14.41666304,2278.2,2278.1,0.0382505]
[1726456908123,10.02723304,2278.2,2278.1,0.0382505]
[1726456909273,10.02723304,2278.2,2278.1,0.03698723]
[1726456910074,17.41666304,2278.2,2278.1,0.03698723]
[1726456920082,12.38093304,2278.2,2278.1,0.03698723]
[1726456920490,16.35142284,2278.2,2278.1,0.03698723]
[1726456920869,20.74085284,2278.2,2278.1,0.03698723]
[1726456921069,16.35142284,2278.2,2278.1,0.03698723]
[1726456921969,20.74085284,2278.2,2278.1,0.03698723]
[1726456922165,16.35142284,2278.2,2278.1,0.03698723]
[1726456922353,20.74085284,2278.2,2278.1,0.03698723]
[1726456922553,16.35142284,2278.2,2278.1,0.03698723]
[1726456922770,4.99150304,2278.2,2278.1,2.32378723]
[1726456925197,9.38093304,2278.2,2278.1,0.03698723]
[1726456925403,13.99772284,2278.2,2278.1,0.03698723]
[1726456926298,18.38715284,2278.2,2278.1,0.03698723]
[1726456926485,13.99772284,2278.2,2278.1,0.03698723]
[1726456928004,21.38715284,2278.2,2278.1,0.03698723]
[1726456935036,17.41666304,2278.2,2278.1,0.03698723]
[1726456935240,12.38093304,2278.2,2278.1,0.03698723]
[1726456935942,20.74085284,2278.2,2278.1,0.03698723]
[1726456938631,21.38715284,2278.2,2278.1,0.03698723]
[1726456938836,25.77658284,2278.2,2278.1,0.03698723]
[1726456941538,31.57082122,2278.2,2278.1,0.03698723]
[1726456941849,27.60033142,2278.2,2278.1,0.03698723]
[1726456942337,28.05979022,2278.2,2278.1,0.03698723]
[1726456942848,25.77658284,2278.2,2278.1,0.03698723]
[1726456943062,28.05979022,2278.2,2278.1,0.03698723]
[1726456943573,34.13650264,2278.2,2278.1,0.03698723]
[1726456943780,34.13650264,2278.2,2277.4,0.0382505]
[1726456943781,4.39077,2277.5,2277.4,0.0382505]
[1726456944028,20.7890998,2277.5,2277.4,0.0382505]
[1726456944186,20.93094334,2277.5,2277.4,0.0382505]
[1726456944582,25.7809483,2277.5,2277.4,0.0382505]
[1726456944786,27.15345055,2277.5,2277.4,0.0382505]
[1726456944985,25.7809483,2277.5,2277.4,0.0382505]
[1726456945204,23.2201813,2277.5,2277.4,0.0382505]
[1726456945546,27.6109513,2277.5,2277.4,0.0382505]
[1726456946543,27.61240217,2277.5,2277.4,0.0382505]
[1726456947110,23.22163217,2277.5,2277.4,0.0382505]
[1726456947510,10.75663783,2277.5,2277.4,0.0382505]
[1726456947715,9.3826185,2277.5,2277.4,0.0382505]
[1726456948915,12.3826185,2277.5,2277.4,0.0382505]
[1726456949316,13.75663783,2277.5,2277.4,0.0382505]
[1726456950759,12.3826185,2277.5,2277.4,0.0382505]
[1726456951444,10.75663783,2277.5,2277.4,0.0382505]
[1726456951649,4.9918485,2277.5,2277.4,0.0382505]
[1726456952016,4.9918485,2277.5,2277.4,0.28821555]
[1726456952218,4.9918485,2277.5,2277.4,2.73291555]
[1726456952417,4.9918485,2277.5,2277.4,2.4829505]
[1726456953531,0.6010785,2277.5,2277.4,2.4829505]
[1726456954047,0.6010785,2277.5,2277.4,3.0329505]
[1726456955348,4.39001,2277.9,2277.4,4.9792205]
[1726456955518,4.38996,2278.0,2277.6,2.4492]
[1726456955519,4.52598744,2277.8,2277.6,2.4492]
[1726456955719,0.13576744,2277.8,2277.6,2.4492]
[1726456955960,6.44677734,2278.1,2277.7,3.16733887]
[1726456956157,4.38973,2278.1,2277.8,2.2973]
[1726456956346,4.38983,2278.0,2277.8,2.2973]
[1726456956859,4.38983,2278.0,2277.8,2.61403389]
[1726456958225,8.7798,2278.0,2277.8,2.61403389]
[1726456958662,4.39,2277.9,2277.8,2.61403389]
[1726456961119,8.77979,2278.0,2277.8,2.61403389]
[1726456961316,4.38983,2278.0,2277.9,0.31640339]
[1726456961716,4.38962,2278.1,2277.9,0.31640339]
[1726456961922,1.83316126,2278.4,2278.0,2.2559]
[1726456962124,0.45914193,2278.4,2278.3,0.55]
[1726456962322,0.45914193,2278.4,2278.3,11.96149774]
[1726456962560,6.44677734,2278.8,2278.7,2.8059]
[1726456966150,4.38791,2279.0,2278.7,2.8059]
[1726456967004,8.77598,2279.0,2278.7,2.8059]
[1726456967315,4.38808,2278.9,2278.8,0.28059]
[1726456967513,4.3885,2278.7,2278.5,0.55]
[1726456967671,4.38877,2278.6,2278.4,2.78774586]
[1726456967872,4.38885,2278.5,2277.7,2.3199]
[1726456968107,4.38924,2278.3,2277.9,2.3199]
[1726456968273,8.7786,2278.3,2277.9,2.3199]
[1726456968471,8.7786,2278.3,2278.0,0.2948939]
[1726456968472,4.38924,2278.3,2278.0,0.2948939]
[1726456968710,4.38925,2278.3,2278.0,0.2948939]
[1726456969389,4.389,2278.5,2278.0,0.2948939]
[1726456969587,4.38962,2278.1,2277.9,2.3199]
[1726456970186,4.38981,2278.0,2277.9,2.3199]
[1726456970616,4.52799931,2278.0,2277.9,2.3199]
[1726456971522,4.52799931,2278.0,2277.5,2.4257]
[1726456971724,8.91795931,2278.0,2277.6,2.4257]
[1726456972025,4.52799931,2278.0,2277.6,2.4257]
[1726456973304,0.13818931,2278.0,2277.6,2.51350032]
[1726456973502,0.13818931,2278.0,2277.7,0.80862804]
[1726456973686,4.38972,2278.1,2277.7,0.80862804]
[1726456973891,0.13816984,2277.9,2277.7,0.80862804]
[1726456974151,4.38972,2278.1,2277.7,0.80862804]
[1726456974461,4.38983,2278.0,2277.7,0.80862804]
[1726456974750,4.52799984,2278.0,2277.7,0.80862804]
[1726456977232,0.13816984,2278.0,2277.8,0.55]
[1726456977440,8.77914,2278.2,2277.8,0.55]
[1726456977664,0.13818936,2277.9,2277.8,0.9284328]
[1726456977834,4.38964,2278.1,2277.8,0.9284328]
[1726456978159,0.13816984,2277.9,2277.8,0.9284328]